bitfinex/quotes_SOLUSD_20250601
["timestamp","ask_amount","ask_price","bid_price","bid_amount"]
[1748798378909,19.74313241,156.1,156.07,6.40728962]
[1748798379412,19.74313241,156.09,156.07,6.40728962]
[1748798379790,19.74313241,156.08,156.07,6.40728962]
[1748798379990,19.74313241,156.09,156.07,6.40728962]
[1748798380610,19.74313241,156.1,156.07,6.40728962]
[1748798384124,19.74313241,156.09,156.07,6.40728962]
[1748798386905,19.74313241,156.1,156.07,22.42574287]
[1748798391317,19.74313241,156.09,156.07,22.42574287]
[1748798392010,19.74313241,156.1,156.07,22.42574287]
[1748798397833,39.48626482,156.08,156.02,10.28]
[1748798398027,19.74313241,156.03,156.02,16.68943468]
[1748798398433,19.74313241,156.03,156.02,6.40943468]
[1748798399749,19.74313241,156.04,156.01,22.43445932]
[1748798399924,19.74313241,156.05,156.01,22.43445932]
[1748798400116,19.74313241,156.05,156.02,18.64964886]
[1748798401138,19.74313241,156.05,156.03,6.4090239]
[1748798401938,19.74313241,156.04,156.03,6.4090239]
[1748798402113,19.74313241,156.04,156.0,65.44]
[1748798402315,19.74313241,156.03,156.0,65.44]
[1748798403140,19.74313241,156.03,156.01,6.40984552]
[1748798403344,19.74313241,156.02,156.01,6.40984552]
[1748798404740,19.74313241,156.02,156.0,32.41012978]
[1748798404930,19.74313241,156.01,155.98,49.72]
[1748798405242,19.74313241,156.0,155.99,6.41052349]
[1748798406954,19.74313241,156.01,155.99,6.41052349]
[1748798407148,19.74313241,156.02,155.99,6.41052349]
[1748798409231,20.64313241,156.02,155.99,6.41052349]
[1748798409432,19.74313241,156.02,155.99,6.41052349]
[1748798410156,19.74313241,156.03,155.99,22.43719186]
[1748798410355,19.74313241,156.05,156.0,45.74313241]
[1748798410659,19.74313241,156.05,156.01,39.44]
[1748798411162,19.74313241,156.04,156.01,39.44]
[1748798411468,19.74313241,156.02,156.01,39.44]
[1748798411756,19.74313241,156.02,155.99,32.41066735]
[1748798411957,19.74313241,156.0,155.99,32.41066735]
[1748798412763,19.74313241,156.0,155.99,6.41066735]
[1748798413132,19.74313241,156.01,155.99,6.41066735]
[1748798413660,19.74313241,156.01,155.98,6.41107834]
[1748798415142,19.74313241,156.01,155.98,22.43877419]
[1748798415464,19.74313241,156.03,155.98,42.1819066]
[1748798416262,150.9,156.05,155.98,42.1819066]
[1748798416445,19.74313241,156.03,155.98,42.1819066]
[1748798418649,19.74313241,156.04,155.99,19.74313241]
[1748798419163,19.74313241,156.04,156.0,64.39278127]
[1748798419348,19.74313241,156.04,156.01,39.44]
[1748798419662,19.74313241,156.03,156.01,39.44]
[1748798420862,19.74313241,156.03,156.02,6.40943468]
[1748798421737,19.74313241,156.03,156.01,45.84971132]
[1748798421947,19.74313241,156.02,156.01,45.84971132]
[1748798422859,19.74313241,156.02,155.99,6.41066735]
[1748798423067,21.74313241,156.02,155.99,6.41066735]
[1748798423359,19.74313241,156.01,155.99,6.41066735]
[1748798423740,19.74313241,156.0,155.99,6.41066735]
[1748798428765,19.74313241,156.0,155.96,6.41190048]
[1748798428966,19.74313241,155.97,155.96,6.41190048]
[1748798429264,19.74313241,155.98,155.96,6.41190048]
[1748798429466,21.74313241,156.0,155.96,26.15503289]
[1748798429654,2.0,156.0,155.98,6.41107834]
[1748798430042,168.64313241,156.01,155.98,6.41107834]
[1748798430242,168.64313241,156.01,155.98,22.43877419]
[1748798430456,148.9,156.01,155.98,42.1819066]
[1748798431362,19.74313241,156.03,155.98,68.1819066]
[1748798433258,19.74313241,156.02,155.98,68.1819066]
[1748798433562,19.74313241,156.02,155.98,48.43877419]
[1748798433953,0.9,156.01,155.98,48.43877419]
[1748798435456,0.9,156.01,155.98,68.1819066]
[1748798436072,19.74313241,156.02,155.98,68.1819066]
[1748798436278,148.9,156.06,155.98,68.1819066]
[1748798436587,19.74313241,156.03,155.98,68.1819066]
[1748798436977,19.74313241,156.02,155.98,68.1819066]
[1748798437887,19.74313241,156.02,155.98,48.43877419]
[1748798439081,0.9,156.01,155.98,48.43877419]
[1748798440989,19.74313241,156.02,155.98,48.43877419]
[1748798441669,19.74313241,156.04,156.0,19.74313241]
[1748798441977,19.74313241,156.05,156.01,59.16313241]
[1748798442184,19.74313241,156.05,156.01,85.16313241]
[1748798442386,19.74313241,156.06,156.01,85.16313241]
[1748798443259,19.74313241,156.06,156.02,25.05908354]
[1748798443485,19.74313241,156.07,156.02,44.80221595]
[1748798443695,19.74313241,156.06,156.02,60.82580266]
[1748798444077,21.74313241,156.06,156.02,41.08267025]
[1748798445766,19.74313241,156.05,156.02,41.08267025]
[1748798448901,2.0,156.06,156.03,19.74313241]
[1748798449199,19.74313241,156.07,156.03,19.74313241]
[1748798450007,19.74313241,156.08,156.05,26.0]
[1748798450190,19.74313241,156.08,156.05,65.42]
[1748798450392,11.846,156.12,156.05,65.42]
[1748798450393,19.74313241,156.09,156.05,65.42]
[1748798450775,19.74313241,156.09,156.06,6.40779187]
[1748798451491,1.7,156.08,156.06,6.40779187]
[1748798454416,19.74313241,156.09,156.06,6.40779187]
[1748798456600,11.846,156.12,156.06,26.15092428]
[1748798456601,1.566,156.12,156.06,26.15092428]
[1748798456806,2.0,156.09,156.06,26.15092428]
[1748798456997,19.74313241,156.1,156.06,26.15092428]
[1748798457379,19.74313241,156.1,156.06,6.40779187]
[1748798457683,19.74313241,156.09,156.06,6.40779187]
[1748798461804,1.7,156.08,156.06,6.40779187]
[1748798462390,21.44313241,156.08,156.06,6.40779187]
[1748798464290,1.7,156.08,156.06,6.40779187]
[1748798465890,21.44313241,156.08,156.06,6.40779187]
[1748798468195,1.7,156.08,156.06,6.40779187]
[1748798468502,21.44313241,156.08,156.06,6.40779187]
[1748798469026,1.7,156.08,156.06,6.40779187]
[1748798469225,12.61038374,156.08,156.06,6.40779187]
[1748798469533,12.61038374,156.07,156.05,32.40805475]
[1748798470922,12.61038374,156.06,156.05,32.40805475]
[1748798471226,19.71038796,156.06,156.05,32.40800243]
[1748798471524,19.71038796,156.07,156.05,32.40800243]
[1748798472394,19.71038796,156.06,156.0,26.30471472]
[1748798472590,19.71038796,156.04,156.0,52.30471472]
[1748798472795,19.71038796,156.05,156.01,84.14988234]
[1748798473202,19.71038796,156.05,156.01,64.43949438]
[1748798473397,148.9,156.09,156.01,64.43949438]
[1748798473714,19.71038796,156.05,156.01,64.43949438]
[1748798474122,19.71038796,156.04,156.01,64.43949438]
[1748798475496,19.71038796,156.04,156.01,64.45949438]
[1748798477913,19.71038796,156.03,156.01,64.45949438]
[1748798478121,19.71038796,156.03,156.01,45.80984552]
[1748798479016,19.71038796,156.02,155.99,6.41026367]
[1748798479199,19.71038796,156.0,155.99,6.41026367]
[1748798479615,19.71038796,156.0,155.98,32.41095591]
[1748798479821,19.71038796,155.99,155.98,6.41095591]
[1748798480022,19.71038796,155.99,155.97,6.41148938]
[1748798480997,19.71038796,155.98,155.97,6.41148938]
[1748798482120,19.71038796,155.98,155.96,32.41177087]
[1748798483033,1.603,156.02,155.96,48.44152208]
[1748798483229,148.9,156.03,155.98,19.71038796]
[1748798483415,148.9,156.03,155.99,85.33038796]
[1748798484528,148.9,156.03,156.0,6.41025641]
[1748798484865,19.71038796,156.04,156.0,6.41025641]
[1748798485217,2.0,156.03,156.0,6.41025641]
[1748798485813,19.71038796,156.04,156.0,6.41025641]
[1748798487443,19.71038796,156.03,156.0,6.41025641]
[1748798490017,19.71038796,156.01,156.0,6.41025641]
[1748798490226,19.71038796,156.01,155.98,6.4107955]
[1748798490543,19.71038796,156.0,155.98,6.4107955]
[1748798490927,19.71038796,156.0,155.97,6.41148938]
[1748798491131,19.71038796,155.99,155.97,6.41148938]
[1748798494943,19.71038796,156.0,155.97,6.41148938]
[1748798495448,0.7,155.99,155.97,6.41148938]
[1748798495633,20.41038796,155.99,155.97,6.41148938]
[1748798496733,0.7,155.99,155.97,6.41148938]
[1748798496938,148.9,156.03,155.98,38.36003682]
[1748798497244,19.71038796,156.04,156.0,38.36003682]
[1748798497425,19.71038796,156.04,156.01,39.54]
[1748798497626,19.71038796,156.04,156.02,6.40943468]
[1748798499248,19.71038796,156.03,156.02,6.40943468]
[1748798499542,19.71038796,156.03,156.0,6.41025641]
[1748798499733,19.71038796,156.01,156.0,6.41025641]
[1748798500136,19.71038796,156.01,155.99,32.41054546]
[1748798500442,21.71038796,156.0,155.97,39.54]
[1748798500648,19.71038796,155.99,155.97,39.54]
[1748798501050,19.71038796,155.98,155.95,6.41231163]
[1748798501350,19.71038796,155.98,155.96,39.54]
[1748798501554,19.71038796,155.99,155.96,39.54]
[1748798501853,19.71038796,155.99,155.97,6.41148938]
[1748798505251,19.71038796,155.99,155.96,6.41190048]
[1748798505450,21.71038796,155.99,155.96,45.91190048]
[1748798508835,2.0,155.99,155.96,45.91190048]
[1748798509234,21.71038796,155.99,155.96,45.91190048]
[1748798509432,2.0,155.99,155.98,26.0]
[1748798509659,148.9,156.02,155.98,45.71038796]
[1748798509856,148.9,156.02,155.99,59.27038796]
[1748798511130,19.71038796,156.03,156.0,6.41025641]
[1748798512957,19.71038796,156.02,156.0,6.41025641]
[1748798513261,19.71038796,156.01,156.0,6.41025641]
[1748798515458,19.71038796,156.02,156.0,6.41025641]
[1748798516155,8.063069,156.06,156.0,6.41025641]
[1748798516355,19.71038796,156.02,156.0,6.41025641]
[1748798517542,19.71038796,156.03,156.0,6.41025641]
[1748798518665,19.71038796,156.02,156.0,6.41025641]
[1748798523775,148.9,156.07,156.01,64.36003682]
[1748798523979,6.40590562,156.11,156.05,19.71038796]
[1748798523980,148.9,156.11,156.05,19.71038796]
[1748798524166,19.71038796,156.1,156.05,59.21038796]
[1748798524366,19.71038796,156.08,156.05,39.5]
[1748798524876,19.71038796,156.08,156.06,6.40779187]
[1748798526377,19.71038796,156.07,156.06,6.40779187]
[1748798527585,19.71038796,156.07,156.05,6.40820249]
[1748798527798,19.71038796,156.06,156.05,6.40820249]
[1748798528364,19.71038796,156.07,156.05,6.40820249]
[1748798529465,19.71038796,156.06,156.05,6.40820249]
[1748798529858,19.71038796,156.06,156.03,6.4090239]
[1748798530060,19.71038796,156.05,156.03,6.4090239]
[1748798531666,19.71038796,156.04,156.03,6.4090239]
[1748798531986,19.71038796,156.04,156.01,45.86984552]
[1748798532281,19.71038796,156.02,156.01,6.40984552]
[1748798533868,19.71038796,156.02,156.0,6.41025641]
[1748798534977,19.71038796,156.03,156.0,6.41025641]
[1748798535289,19.71038796,156.04,156.0,6.41025641]
[1748798535486,19.71038796,156.04,156.0,26.12064437]
[1748798535687,148.9,156.07,156.01,38.36003682]
[1748798535868,19.71038796,156.06,156.01,38.36003682]
[1748798536068,19.71038796,156.06,156.02,39.44]
[1748798536481,19.71038796,156.05,156.02,39.44]
[1748798537284,19.71038796,156.05,156.03,6.4090239]
[1748798538875,148.9,156.07,156.03,42.14197162]
[1748798539489,168.61038796,156.07,156.03,42.14197162]
[1748798539675,19.71038796,156.07,156.03,42.14197162]
[1748798541798,19.71038796,156.08,156.04,18.64964886]
[1748798542174,19.71038796,156.08,156.05,39.4]
[1748798542596,19.71038796,156.09,156.05,39.4]
[1748798542778,19.71038796,156.09,156.05,65.4]
[1748798542981,19.71038796,156.08,156.05,65.4]
[1748798544078,19.71038796,156.08,156.06,6.40779187]
[1748798544572,19.71038796,156.07,156.06,6.40779187]
[1748798546166,19.71038796,156.07,156.05,6.40820249]
[1748798546372,19.71038796,156.06,156.05,6.40820249]
[1748798549386,19.71038796,156.06,156.04,6.40861317]
[1748798549879,19.71038796,156.05,156.04,6.40861317]
[1748798550995,19.71038796,156.06,156.04,6.40861317]
[1748798554378,19.71038796,156.07,156.04,22.43014611]
[1748798555599,19.71038796,156.06,156.04,6.40861317]
[1748798555896,19.71038796,156.05,156.04,6.40861317]
[1748798556691,19.71038796,156.06,156.04,6.40861317]
[1748798558494,19.71038796,156.05,156.04,6.40861317]
[1748798559187,19.71038796,156.05,156.02,6.40943468]
[1748798559519,1.6648,156.07,156.02,6.40943468]
[1748798559520,19.71038796,156.03,156.02,6.40943468]
[1748798564820,19.71038796,156.03,156.01,6.40967998]
[1748798565104,19.71038796,156.02,155.99,6.41066735]
[1748798565407,6.40785935,156.06,155.99,6.41066735]
[1748798565408,19.71038796,156.01,155.99,6.41066735]
[1748798565622,19.71038796,156.0,155.99,6.41066735]
[1748798565989,19.71038796,156.01,155.99,6.41066735]
[1748798566212,19.71038796,156.03,155.99,38.36003682]
[1748798566391,19.71038796,156.04,155.99,38.36003682]
[1748798567989,19.71038796,156.04,156.0,68.14628539]
[1748798568189,19.71038796,156.04,156.01,39.4]
[1748798569313,19.71038796,156.04,156.02,6.40943468]
[1748798569616,160.8248,156.07,156.02,6.40943468]
[1748798569799,19.71038796,156.04,156.02,6.40943468]
[1748798570811,150.5648,156.07,156.02,22.43302139]
[1748798570990,19.71038796,156.05,156.02,22.43302139]
[1748798580010,19.71038796,156.04,156.02,22.43302139]
[1748798580813,148.9,156.07,156.02,22.43302139]
[1748798581026,19.71038796,156.05,156.02,22.43302139]
[1748798583026,19.71038796,156.04,156.02,22.43302139]
[1748798586515,148.9,156.07,156.01,6.40984552]
[1748798586516,19.71038796,156.03,156.01,6.40984552]
[1748798586716,19.71038796,156.03,156.01,45.80984552]
[1748798586920,19.71038796,156.03,156.01,6.40984552]
[1748798587312,19.71038796,156.02,156.01,6.40984552]
[1748798591034,19.71038796,156.06,156.02,18.64964886]
[1748798591238,167.1981,156.11,156.03,39.4]
[1748798591537,19.71038796,156.08,156.03,39.4]
[1748798591711,19.71038796,156.06,156.03,39.4]
[1748798591907,19.71038796,156.06,156.04,6.40861317]
[1748798592737,19.71038796,156.05,156.04,6.40861317]
[1748798601137,19.71038796,156.05,156.03,6.4090239]
[1748798606666,19.71038796,156.04,156.03,6.4090239]
[1748798607248,12.61786744,156.04,156.03,6.4090239]
[1748798607866,12.61786744,156.04,156.02,6.40943468]
[1748798609867,12.61786744,156.05,156.02,6.40943468]
[1748798612939,155.30700762,156.08,156.02,6.40943468]
[1748798612940,12.61786744,156.03,156.02,6.40943468]
[1748798613139,12.61786744,156.03,156.0,6.40988403]
[1748798613446,12.61786744,156.01,156.0,6.40988403]
[1748798613648,12.61786744,156.02,156.0,6.40988403]
[1748798614582,148.9,156.05,156.0,6.40988403]
[1748798614744,161.51786744,156.05,156.01,39.4]
[1748798615142,161.51786744,156.05,156.02,6.40943468]
[1748798616277,12.61786744,156.06,156.02,22.43302139]
[1748798617184,19.71073408,156.06,156.02,22.43302139]
[1748798619690,148.9,156.09,156.02,42.14375547]
[1748798619853,19.71073408,156.06,156.02,42.14375547]
[1748798620252,19.71073408,156.06,156.02,22.43302139]
[1748798620475,19.71073408,156.05,156.02,22.43302139]
[1748798621470,19.71073408,156.05,156.02,6.40943468]
[1748798622564,19.71073408,156.04,156.02,6.40943468]
[1748798624070,19.71073408,156.05,156.02,6.40943468]
[1748798625464,19.71073408,156.06,156.02,22.43302139]
[1748798626765,19.71073408,156.05,156.02,22.43302139]
[1748798628298,148.9,156.09,156.02,22.43302139]
[1748798628588,19.71073408,156.07,156.02,42.14375547]
[1748798629385,2.0,156.06,156.02,42.14375547]
[1748798629977,148.9,156.09,156.02,42.14375547]
[1748798630196,19.71073408,156.06,156.02,42.14375547]
[1748798632203,148.9,156.09,156.03,38.36038294]
[1748798632372,168.61073408,156.09,156.05,26.0]
[1748798632578,19.71073408,156.09,156.05,65.38]
[1748798632778,148.9,156.13,156.05,85.09073408]
[1748798632779,19.71073408,156.1,156.05,85.09073408]
[1748798633388,19.71073408,156.1,156.06,18.64964886]
[1748798633591,19.71073408,156.12,156.08,6.40697078]
[1748798633922,19.71073408,156.14,156.09,77.74038294]
[1748798634370,19.71073408,156.14,156.1,19.71073408]
[1748798635699,19.71073408,156.14,156.09,58.02964886]
[1748798635700,19.71073408,156.14,156.11,6.40573954]
[1748798635892,1.6,156.13,156.11,6.40573954]
[1748798636394,19.71073408,156.13,156.11,6.40573954]
[1748798637795,19.71073408,156.13,156.1,6.4061499]
[1748798640890,1.5,156.12,156.1,6.4061499]
[1748798645806,19.71073408,156.13,156.1,22.42152465]
[1748798646209,148.9,156.17,156.1,22.42152465]
[1748798646210,19.71073408,156.15,156.11,38.36038294]
[1748798646904,19.71073408,156.17,156.13,19.71073408]
[1748798647082,19.71073408,156.16,156.13,39.36]
[1748798647488,20.91073408,156.16,156.14,6.40450877]
[1748798651307,19.71073408,156.15,156.14,6.40450877]
[1748798652525,19.71073408,156.15,156.12,6.40532923]
[1748798652707,19.71073408,156.14,156.12,6.40532923]
[1748798652893,19.71073408,156.15,156.12,6.40532923]
[1748798654002,1.2,156.16,156.08,18.64964886]
[1748798654003,19.71073408,156.13,156.08,18.64964886]
[1748798654215,19.71073408,156.09,156.08,18.64964886]
[1748798654421,19.71073408,156.1,156.08,18.64964886]
[1748798654723,19.71073408,156.1,156.09,6.40656031]
[1748798657024,19.71073408,156.1,156.08,6.40697078]
[1748798657999,20.91073408,156.1,156.08,6.40697078]
[1748798658809,1.2,156.1,156.09,18.64964886]
[1748798659012,19.71073408,156.11,156.09,18.64964886]
[1748798660025,19.71073408,156.11,156.1,6.4061499]
[1748798661423,19.71073408,156.12,156.1,6.4061499]
[1748798662699,160.6851,156.17,156.11,38.36038294]
[1748798662913,19.71073408,156.13,156.12,26.0]
[1748798663119,19.71073408,156.13,156.1,22.42152465]
[1748798663316,19.71073408,156.13,156.1,48.42152465]
[1748798668123,19.71073408,156.12,156.1,48.42152465]
[1748798668921,19.71073408,156.13,156.1,48.42152465]
[1748798669109,160.6851,156.17,156.1,48.42152465]
[1748798669309,19.71073408,156.13,156.1,48.42152465]
[1748798670231,19.71073408,156.14,156.12,32.40532923]
[1748798670742,19.71073408,156.15,156.12,71.76532923]
[1748798672424,19.71073408,156.14,156.12,71.76532923]
[1748798672623,19.71073408,156.15,156.12,87.77865231]
[1748798672918,19.71073408,156.16,156.13,18.64964886]
[1748798674337,19.71073408,156.16,156.14,6.40450877]
[1748798677729,19.71073408,156.15,156.14,6.40450877]
[1748798679831,11.7529,156.21,156.14,22.4157807]
[1748798680064,19.71073408,156.16,156.14,22.4157807]
[1748798683232,12.59753285,156.16,156.14,22.4157807]
[1748798685521,12.59753285,156.16,156.14,6.40450877]
[1748798685828,12.59753285,156.15,156.1,6.4061499]
[1748798686025,12.59753285,156.11,156.1,32.4061499]
[1748798689246,19.69591495,156.11,156.1,32.4061499]
[1748798703161,19.69591495,156.11,156.1,6.4061499]
[1748798705057,148.9,156.15,156.1,6.4061499]
[1748798705241,19.69591495,156.11,156.09,16.01575016]
[1748798706264,19.69591495,156.12,156.09,16.01575016]
[1748798706665,148.9,156.15,156.11,41.06973725]
[1748798706666,19.69591495,156.14,156.11,41.06973725]
[1748798707170,168.59591495,156.15,156.11,41.06973725]
[1748798707665,168.59591495,156.15,156.11,80.40973725]
[1748798708377,19.69591495,156.14,156.11,80.40973725]
[1748798711065,1.5028,156.22,156.14,44.64964886]
[1748798711265,12.59521352,156.18,156.14,83.98964886]
[1748798713163,12.59521352,156.18,156.15,6.40409862]
[1748798714572,12.59521352,156.17,156.15,6.40409862]
[1748798715260,19.68121144,156.17,156.15,6.40409862]
[1748798715585,19.68121144,156.18,156.15,6.40409862]
[1748798718176,19.68121144,156.18,156.15,22.41434517]
[1748798718569,19.68121144,156.2,156.16,38.3308603]
[1748798718869,19.68121144,156.2,156.17,39.32]
[1748798720069,19.68121144,156.2,156.18,6.40286848]
[1748798724287,19.68121144,156.21,156.18,6.40286848]
[1748798725668,19.68121144,156.22,156.18,6.40286848]
[1748798725873,19.68121144,156.22,156.18,26.08407992]
[1748798726377,19.68121144,156.22,156.18,42.09125113]
[1748798726584,19.68121144,156.22,156.18,22.41003969]
[1748798726884,19.68121144,156.21,156.18,22.41003969]
[1748798727487,19.68121144,156.22,156.18,22.41003969]
[1748798728086,19.68121144,156.22,156.19,18.64964886]
[1748798728274,19.68121144,156.23,156.19,38.3308603]
[1748798729394,19.68121144,156.23,156.2,6.40204865]
[1748798731398,19.68121144,156.21,156.2,6.40204865]
[1748798732917,19.68121144,156.21,156.18,25.05251734]
[1748798734003,6.4004634,156.24,156.18,6.40286848]
[1748798734004,19.68121144,156.2,156.18,6.40286848]
[1748798734192,19.68121144,156.19,156.18,6.40286848]
[1748798736397,19.68121144,156.19,156.15,10.22]
[1748798736600,19.68121144,156.18,156.16,6.40355771]
[1748798738186,19.68121144,156.18,156.15,6.40409862]
[1748798739098,19.68121144,156.17,156.14,32.40434502]
[1748798739276,19.68121144,156.16,156.14,32.40434502]
[1748798742187,19.68121144,156.15,156.14,32.40434502]
[1748798742593,19.68121144,156.15,156.12,6.40509227]
[1748798742799,19.68121144,156.13,156.12,6.40509227]
[1748798743996,19.68121144,156.14,156.12,6.40509227]
[1748798744310,19.68121144,156.16,156.12,60.74927565]
[1748798746988,148.9,156.19,156.13,38.3308603]
[1748798746989,19.68121144,156.17,156.13,38.3308603]
[1748798747308,19.68121144,156.18,156.15,18.64964886]
[1748798749087,19.68121144,156.18,156.16,6.40368852]
[1748798750614,19.68121144,156.17,156.16,6.40368852]
[1748798751200,19.68121144,156.17,156.15,6.40409862]
[1748798751403,19.68121144,156.16,156.15,6.40409862]
[1748798752117,1.5549,156.21,156.15,6.40409862]
[1748798752315,19.68121144,156.16,156.15,6.40409862]
[1748798757405,19.68121144,156.16,156.13,22.41721641]
[1748798757613,19.68121144,156.15,156.13,22.41721641]
[1748798759120,19.68121144,156.14,156.13,22.41721641]
[1748798759307,19.68121144,156.14,156.13,6.40491897]
[1748798760628,19.68121144,156.14,156.11,6.40573954]
[1748798760923,19.68121144,156.13,156.11,22.42008839]
[1748798761125,19.68121144,156.14,156.11,22.42008839]
[1748798761437,19.68121144,156.12,156.11,22.42008839]
[1748798766407,19.68121144,156.13,156.11,22.42008839]
[1748798768525,19.68121144,156.14,156.11,22.42008839]
[1748798769446,148.9,156.17,156.12,18.64964886]
[1748798769645,148.9,156.17,156.12,38.3308603]
[1748798769844,168.58121144,156.17,156.13,39.3]
[1748798770514,168.58121144,156.17,156.14,22.4157807]
[1748798771435,168.58121144,156.17,156.14,6.40450877]
[1748798771436,19.68121144,156.15,156.14,6.40450877]
[1748798772214,19.68121144,156.16,156.14,6.40450877]
[1748798777539,19.68121144,156.18,156.14,42.09699214]
[1748798777739,19.68121144,156.19,156.15,18.64964886]
[1748798778040,19.68121144,156.19,156.16,39.28]
[1748798778938,19.68121144,156.19,156.17,6.40327847]
[1748798780025,19.68121144,156.18,156.17,6.40327847]
[1748798782142,19.68121144,156.18,156.15,39.28]
[1748798782346,19.68121144,156.16,156.15,39.28]
[1748798784257,19.68121144,156.16,156.15,45.68409862]
[1748798785656,19.68121144,156.17,156.15,45.68409862]
[1748798788250,148.9,156.22,156.15,61.69434517]
[1748798788446,19.68121144,156.19,156.15,61.69434517]
[1748798788847,19.68121144,156.19,156.15,81.37555661]
[1748798790646,148.9,156.22,156.15,81.37555661]
[1748798790865,19.68121144,156.2,156.15,81.37555661]
[1748798791062,148.9,156.22,156.16,18.64964886]
[1748798791238,19.68121144,156.22,156.19,18.64964886]
[1748798791444,19.68121144,156.22,156.19,57.92964886]
[1748798792044,19.68121144,156.22,156.2,6.40204865]
[1748798793865,19.68121144,156.21,156.2,6.40204865]
[1748798795146,19.68121144,156.22,156.2,6.40204865]
[1748798795347,11.46572534,156.27,156.2,22.40717028]
[1748798795550,19.68121144,156.22,156.2,22.40717028]
[1748798797453,19.68121144,156.23,156.2,22.40717028]
[1748798800652,19.68121144,156.24,156.2,22.40717028]
[1748798803982,19.68121144,156.23,156.2,22.40717028]
[1748798804361,148.9,156.26,156.2,68.08838172]
[1748798804567,19.68121144,156.25,156.21,19.68121144]
[1748798804881,19.68121144,156.25,156.22,39.26]
[1748798805683,19.68121144,156.25,156.23,6.4008193]
[1748798806196,148.9,156.26,156.23,22.40286756]
[1748798806863,19.68121144,156.27,156.23,22.40286756]
[1748798807174,19.68121144,156.3,156.26,19.68121144]
[1748798807378,19.68121144,156.3,156.27,39.26]
[1748798808180,19.68121144,156.3,156.28,6.39877143]
[1748798809053,148.9,156.31,156.28,6.39877143]
[1748798809249,19.68121144,156.3,156.28,6.39877143]
[1748798809662,168.58121144,156.31,156.28,6.39877143]
[1748798809863,19.68121144,156.3,156.28,6.39877143]
[1748798811159,19.68121144,156.29,156.28,6.39877143]
[1748798811381,19.68121144,156.29,156.27,55.25781023]
[1748798811382,19.68121144,156.29,156.27,45.65916765]
[1748798811556,19.68121144,156.28,156.27,6.39916765]
[1748798812266,148.9,156.31,156.27,6.39916765]
[1748798812462,19.68121144,156.29,156.27,6.39916765]
[1748798812781,19.68121144,156.3,156.28,39.24]
[1748798813364,19.68121144,156.3,156.29,6.39836201]
[1748798818870,19.68121144,156.3,156.28,39.24]
[1748798819381,19.68121144,156.29,156.28,39.24]
[1748798820476,19.68121144,156.29,156.23,6.4008193]
[1748798820781,19.68121144,156.24,156.22,16.60096851]
[1748798821103,19.68121144,156.23,156.22,6.40096851]
[1748798821803,205.9502,156.31,156.22,41.05368995]
[1748798821992,205.9502,156.31,156.22,60.73490139]
[1748798821993,19.68121144,156.26,156.22,60.73490139]
[1748798822593,19.68121144,156.25,156.22,41.05368995]
[1748798824005,19.68121144,156.26,156.22,41.05368995]
[1748798827395,19.68121144,156.26,156.23,18.64964886]
[1748798828106,19.68121144,156.25,156.23,18.64964886]
[1748798828303,19.68121144,156.25,156.23,6.4008193]
[1748798828611,19.68121144,156.24,156.23,6.4008193]
[1748798834289,19.68121144,156.25,156.23,6.4008193]
[1748798840703,19.68121144,156.24,156.23,6.4008193]
[1748798847218,12.5841474,156.24,156.23,6.4008193]
[1748798848388,12.5841474,156.24,156.2,32.40189514]
[1748798848592,12.5841474,156.21,156.2,32.40189514]
[1748798848818,12.5841474,156.22,156.2,32.40189514]
[1748798849321,19.66930056,156.22,156.2,32.40189514]
[1748798850617,148.9,156.26,156.2,68.07631733]
[1748798850809,19.66930056,156.24,156.2,68.07631733]
[1748798851315,19.66930056,156.24,156.2,48.40701677]
[1748798852105,19.66930056,156.24,156.22,6.40122903]
[1748798854325,19.66930056,156.25,156.22,6.40122903]
[1748798857815,19.66930056,156.24,156.22,6.40122903]
[1748798859113,19.66930056,156.23,156.21,45.6214839]
[1748798859333,19.66930056,156.22,156.21,45.6214839]
[1748798859839,19.66930056,156.23,156.21,45.6214839]
[1748798862753,19.66930056,156.23,156.21,6.4014839]
[1748798864542,19.66930056,156.22,156.21,6.4014839]
[1748798866844,19.66930056,156.22,156.2,6.40204865]
[1748798869227,19.66930056,156.22,156.19,6.40245854]
[1748798869443,19.66930056,156.21,156.19,6.40245854]
[1748798869839,19.66930056,156.2,156.19,6.40245854]
[1748798870140,19.66930056,156.2,156.18,42.582746]
[1748798870437,19.66930056,156.2,156.18,32.402746]
[1748798870657,19.66930056,156.19,156.18,6.402746]
[1748798871015,19.66930056,156.19,156.17,6.40312681]
[1748798871217,12.59333746,156.18,156.16,45.60368852]
[1748798871446,12.59333746,156.18,156.16,6.40368852]
[1748798873226,12.59333746,156.17,156.16,6.40368852]
[1748798873424,12.59333746,156.17,156.15,71.60395294]
[1748798873759,6.40178524,156.21,156.14,10.18]
[1748798873760,12.59333746,156.16,156.14,16.58439517]
[1748798873920,12.59333746,156.17,156.14,16.58439517]